[Event "29th IND-ch U17 Open 2018"]
[Site "Sonipat"]
[Date "2018.09.11"]
[Round "11"]
[White "Om Kharola"]
[Black "Dubey Sanchay"]
[Result "1-0"]
[ECO "B86"]
[WhiteElo "2042"]
[BlackElo "1862"]
[Annotator "NA RC"]
[PlyCount "127"]
[EventDate "2018.09.05"]
[EventCountry "IND"]
[SourceTitle "playchess.com"]
[Source "ChessBase"]
[SourceQuality "1"]
[TimeControl "5400+30"]

{[%evp 13,125,0,1,0,0,-15,0,-36,-33,-43,-32,-54,-54,-112,-95,-122,-115,-100,-115,-106,-111,-185,-181,-171,-179,-190,-158,-130,-178,-163,0,-155,0,-199,-204,-209,-208,-208,-205,-206,-129,-125,-124,-129,-42,-61,-39,-27,0,-24,0,-26,30,32,21,25,24,24,132,51,139,108,116,70,85,90,86,87,104,100,146,120,120,122,95,124,120,110,118,118,129,127,158,160,252,241,277,225,376,407,294,508,466,566,517,32767,32767,32767,32767,32767,32767,32767,32767,32767,32767,32767,32767,32767,32767,32767,32767,32767,29977,29968]} 1. e4 {[%emt 0:00:00]} c5 {[%emt 0:00:00]} 2. Nf3 {[%emt 0:00:00]} d6 {[%emt 0:00:00]} 3. d4 {[%emt 0:00:00]} cxd4 {[%emt 0:00:00]} 4. Nxd4 {[%emt 0:00:00]} Nf6 {[%emt 0:00:00]} 5. Nc3 {[%emt 0:00:00]} a6 {[%emt 0:00:01]} 6. Bc4 {[%emt 0:00:01]} e6 {[%emt 0:00:00]} 7. Bb3 {[%emt 0:00:00]} Nbd7 {[%emt 0:00:01]} 8. Qf3 {[%emt 0:00:51]} Nc5 {[%emt 0:04:33]} 9. Bg5 {[%emt 0:00:25]} Be7 {[%emt 0:00:14]} 10. O-O-O {[%emt 0:00:15] B86: Sicilian Scheveningen/Najdorf: 6 Bc4, without early ...b5} Qc7 {[%emt 0:16:30] LiveBook: 13 Games} 11. Kb1 {[%emt 0:00:25]} (11. Rhe1 O-O 12. Kb1 b5 13. e5 Bb7 14. exf6 Bxf3 15. fxe7 Bxd1 16. exf8=Q+ Rxf8 17. Rxd1 d5 18. g3 Qd7 19. Be3 {½-½ (19) Mosadeghpour,M (2525)-Hakemi,A (2245) Khomein 2018}) 11... O-O {[%emt 0:08:44]} 12. Qe2 $146 {[%emt 0:03:51]} ({Predecessor:} 12. g4 b5 13. Bxf6 Bxf6 14. g5 Be5 15. Qe3 b4 16. Na4 Bd7 17. Nxc5 dxc5 {½-½ (32) Asauskas,H (2309)-Piesina,G (2358) Vilnius 2006}) 12... b5 {[%emt 0:07:56]} 13. f4 {[%emt 0:01:20]} (13. a3 $15) 13... Bb7 {[%emt 0:07:19]} 14. e5 {[%emt 0:01:26]} dxe5 {[%emt 0:04:33]} 15. fxe5 {[%emt 0:00:04]} Nfe4 {[%emt 0:00:25]} 16. Nxe4 {[%emt 0:00:34]} Bxe4 {[%emt 0:02:19]} 17. Bf4 {[%emt 0:00:38]} (17. Bxe7 $17 Qxe7 18. Ka1) 17... Rfd8 {[%emt 0:04:52]} 18. h4 {[%emt 0:00:01]} Rac8 {[%emt 0:06:26]} 19. Ka1 {[%emt 0:00:00]} Qb6 $2 {[%emt 0:06:02]} 20. Be3 $1 {[%emt 0:01:38]} Qb8 $2 {[%emt 0:05:49]} ({Better is} 20... Rd7 $17 21. Nf3 Rxd1+ 22. Rxd1 Nxb3+ 23. cxb3 Qc7) 21. Bf4 $11 {[%emt 0:00:00]} Qb6 {[%emt 0:05:40]} (21... Qb7 $19 22. Qg4 a5) 22. Be3 {[%emt 0:03:18]} Qb8 {[%emt 0:00:29]} 23. Rhf1 $2 {[%emt 0:18:36]} Qxe5 {[%emt 0:07:47]} 24. Bf4 {[%emt 0:05:48]} Nxb3+ {[%emt 0:02:02]} 25. axb3 {[%emt 0:00:00]} Qd5 {[%emt 0:00:59]} 26. Nxb5 {[%emt 0:00:23]} Qf5 {[%emt 0:00:04]} ({But not} 26... Qxb5 27. Qxe4 Bxh4 28. Be5 $17) (26... Qc6 $19 27. Rxd8+ Rxd8) 27. Rxd8+ {[%emt 0:00:01]} Bxd8 {[%emt 0:02:52]} 28. Na3 {[%emt 0:01:44]} Bb7 {[%emt 0:05:05]} ({Not} 28... Bxh4 29. Bh2 $14) (28... h5 $17 29. Bg5 Qg4) 29. Nc4 {[%emt 0:05:33]} Qb5 {[%emt 0:00:47]} ({But not} 29... Bxh4 $6 {[#]} 30. Bg3 $1 $16 {[%mdl 512]}) 30. Be5 {[%emt 0:05:21]} f6 {[%emt 0:02:56]} 31. Bc3 {[%emt 0:01:13]} Bd5 $1 {[%emt 0:00:18]} 32. Re1 {[%emt 0:00:30]} Bxc4 {[%emt 0:00:00]} (32... a5 $15) 33. bxc4 {[%emt 0:00:00]} Qxc4 {[%emt 0:00:00]} 34. Qxe6+ {[%emt 0:00:00]} Qxe6 {[%emt 0:00:00]} 35. Rxe6 {[%emt 0:00:01]} a5 {[%emt 0:00:00] [#]} (35... Ra8 $11) 36. Re8+ $1 {[%emt 0:02:31]} Kf7 {[%emt 0:00:00]} 37. Rh8 {[%emt 0:00:30]} Ra8 {[%emt 0:00:00]} 38. Rxh7 {[%emt 0:02:54]} ({Better is} 38. h5 $16) 38... Bb6 {[%emt 0:00:12]} 39. Rh5 {[%emt 0:00:01]} a4 {[%emt 0:00:20]} 40. Rb5 {[%emt 0:00:06]} Bf2 {[%emt 0:00:26]} 41. h5 {[%emt 0:00:25]} Rd8 {[%emt 0:01:16]} (41... a3 $142) 42. Rb7+ {[%emt 0:00:00]} Kg8 {[%emt 0:00:29]} 43. Rb4 {[%emt 0:00:15]} Rd1+ {[%emt 0:00:43]} 44. Ka2 {[%emt 0:00:00]} Rc1 {[%emt 0:00:18]} 45. Rxa4 {[%emt 0:00:09]} Rxc2 {[%emt 0:00:00]} 46. g4 {[%emt 0:00:16]} Kh7 {[%emt 0:01:05]} 47. Re4 {[%emt 0:00:47]} Bh4 {[%emt 0:01:15]} 48. Kb3 {[%emt 0:00:00]} Rg2 {[%emt 0:00:22]} (48... Rc1 $16 49. Bd2 Rc7) 49. Kc4 {[%emt 0:00:00]} Kh6 {[%emt 0:00:39]} 50. Bd4 {[%emt 0:00:31]} Bg5 {[%emt 0:00:35]} (50... g6 {was called for.} 51. hxg6 Kxg6) 51. b4 {[%emt 0:00:04]} Rc2+ {[%emt 0:00:32]} 52. Kd5 {[%emt 0:00:22]} g6 {[%emt 0:00:32]} 53. hxg6 {[%emt 0:00:33]} Kxg6 {[%emt 0:00:00]} 54. b5 {[%emt 0:00:00]} Rc8 {[%emt 0:01:00]} 55. b6 {[%emt 0:00:46]} Bh4 {[%emt 0:00:42]} 56. b7 {[%emt 0:00:53]} Rd8+ {[%emt 0:00:21]} 57. Kc6 {[%emt 0:00:00]} Bg3 {[%emt 0:00:09]} 58. Bb6 {[%emt 0:00:04]} Rd6+ {[%emt 0:01:05]} 59. Kb5 {[%emt 0:00:00]} Rd7 {[%emt 0:00:29]} 60. Ka6 {[%emt 0:00:00]} Kg5 {[%emt 0:01:01]} 61. Be3+ {[%emt 0:00:06]} Kg6 {[%emt 0:00:24]} 62. Bf4 {[%emt 0:00:08]} Bxf4 {[%emt 0:00:46]} 63. Rxf4 {[%emt 0:00:00]} Rd6+ {[%emt 0:00:12]} 64. Ka7 {[%emt 0:00:00]} 1-0

[Event "29th IND-ch U17 Open 2018"]
[Site "Sonipat"]
[Date "2018.09.11"]
[Round "11"]
[White "Cheela Naga, Sampath"]
[Black "Vaibhav Jayant Raut"]
[Result "1/2-1/2"]
[ECO "E32"]
[WhiteElo "1935"]
[BlackElo "1999"]
[Annotator "NA RC"]
[PlyCount "58"]
[EventDate "2018.09.05"]
[EventCountry "IND"]
[SourceTitle "playchess.com"]
[Source "ChessBase"]
[SourceQuality "1"]
[TimeControl "5400+30"]

{[%evp 8,58,52,55,64,50,66,65,88,15,61,56,65,62,27,20,44,-29,-12,-27,-25,-19,17,42,27,45,60,-52,94,34,107,117,114,107,108,87,75,101,70,69,80,56,58,50,120,125,147,120,97,109,102,94,131]} 1. d4 {[%emt 0:00:00]} Nf6 {[%emt 0:00:07]} 2. c4 {[%emt 0:00:03]} e6 {[%emt 0:00:36]} 3. Nc3 {[%emt 0:00:03]} Bb4 {[%emt 0:00:03]} 4. Qc2 {[%emt 0:00:25]} b6 {[%emt 0:01:59]} 5. e4 $1 {[%emt 0:01:34]} Bb7 {[%emt 0:05:02]} 6. Bd3 {[%emt 0:00:05]} Bxc3+ {[%emt 0:00:58]} 7. bxc3 {[%emt 0:00:05]} d6 {[%emt 0:00:22]} 8. Nf3 {[%emt 0:02:49] LiveBook: 4 Games} (8. f4 $16) 8... Nbd7 {[%emt 0:02:49] E32: Nimzo-Indian: Classical (4 Qc2): 4...0-0} 9. O-O {[%emt 0:00:33]} e5 {[%emt 0:00:33]} 10. Rb1 $146 {[%emt 0:07:06]} ({Predecessor:} 10. Nh4 O-O 11. Nf5 Re8 12. f3 Nf8 13. Bg5 Ng6 14. Qd2 Bc8 15. g4 Nf8 16. f4 Bxf5 17. gxf5 {½-½ (35) Real de Azua,E (2469)-Bitelmajer,M (2346) Villa Martelli 2016}) 10... O-O {[%emt 0:09:01]} 11. Ba3 {[%emt 0:15:20]} Qe7 {[%emt 0:00:01]} 12. dxe5 {[%emt 0:00:01]} (12. Rfe1 $14) 12... Nxe5 {[%emt 0:00:18]} 13. Nxe5 {[%emt 0:00:04]} Qxe5 {[%emt 0:00:03]} 14. f4 {[%emt 0:00:22]} Qh5 {[%emt 0:09:39]} 15. Rbe1 {[%emt 0:00:16]} Rfe8 {[%emt 0:08:38]} 16. Re3 $1 {[%emt 0:00:56]} h6 {[%emt 0:03:11] [#]} ({But not} 16... Ng4 $2 17. Rh3 $18) 17. Rfe1 {[%emt 0:11:59]} ({White should try} 17. c5 $1 $16 {[%mdl 512]}) 17... Nd7 {[%emt 0:11:47] [#]} ({Much weaker is} 17... Ng4 $6 18. Rh3 $16) (17... Qh4 $15 {stays ahead.} 18. Rf1 Nd7) 18. e5 $1 {[%emt 0:20:33]} Nc5 {[%emt 0:12:15]} (18... Rad8 $1 $11) 19. Bxc5 {[%emt 0:09:26]} bxc5 {[%emt 0:05:42]} 20. Bf5 {[%emt 0:01:13]} Qh4 {[%emt 0:06:38]} 21. e6 {[%emt 0:00:23]} fxe6 {[%emt 0:01:36]} 22. Bxe6+ {[%emt 0:02:11]} Kh8 {[%emt 0:00:14]} 23. Qg6 {[%emt 0:01:01]} Qf6 {[%emt 0:03:57]} 24. Qxf6 {[%emt 0:02:10]} gxf6 {[%emt 0:00:00]} 25. Bf5 {[%emt 0:04:20]} Bc6 {[%emt 0:01:58] [#]} (25... Rxe3 $14 26. Rxe3 Rg8) 26. Re7 $1 {[%emt 0:01:28]} Rab8 {[%emt 0:03:19]} 27. Rh7+ {[%emt 0:00:27]} Kg8 {[%emt 0:00:00]} 28. Rxe8+ {[%emt 0:00:13]} Bxe8 {[%emt 0:00:01]} 29. Rxc7 {[%emt 0:00:37]} Bf7 $16 {[%emt 0:01:15]} 1/2-1/2